{"text_format":"3","workbook":"xlsx","n_sheets":2,"sheets":["START","BUDGETVÆRKTØJ"],"not_rendered":{"defined_names":2},"read":"whole","date_system":"1900"}

{"sheet":"START","index":0,"n_rows":7,"n_cols":2,"rows_kept":7}
[null,"OM DENNE SKABELON"]
[null,"Registrer initialinvesteringen i et websted, dets fortjeneste og omkostninger ved dette værktøj til webstedsbudgettering."]
[null,"Angiv firmanavn og dato."]
[null,"Angiv oplysningerne i tabellerne for automatisk at beregne totaler og evalueringsmålepunkter."]
[null,"Bemærk!  "]
[null,"Du kan finde yderligere vejledning i kolonne A i regnearket BUDGETVÆRKTØJ. Denne tekst er med vilje skjult. Du kan fjerne tekst ved at markere kolonne A og derefter vælge Slet. For ikke længere at skjule tekst skal du markere kolonne A og derefter ændre skriftfarven."]
[null,"Hvis du vil vide mere om tabellerne i regnearket, skal du trykke på Skift og derefter F10, mens du er i en tabel, vælge indstillingen Tabel og derefter vælge Alternativ tekst."]

{"sheet":"BUDGETVÆRKTØJ","index":1,"n_rows":43,"n_cols":6,"rows_kept":43,"merged":[[14,1,14,5],[22,1,22,5],[30,1,30,5],[38,1,38,5]]}
["Opret et webstedetsbudget i dette regneark. I cellerne i denne kolonne vises en udførlig vejledning i, hvordan man bruger dette regneark. Pil ned for at starte."]
["Angiv firmanavn i cellen til højre.","Firmanavn"]
["Titlen på dette regneark vises i cellen til højre.","Værktøj til webstedsbudgettering"]
["Angiv data i cellen til højre.","Dato"]
["Tip er i cellen til højre.","Grå celler indeholder beregninger, som ikke skal ændres."]
["Angiv oplysninger i tabellen Procent, der begynder i cellen til højre. Den næste vejledning er i celle A10.","Firmadata","Grad"]
[null,"Påkrævet afkastningsgrad",{"v":0.1,"d":"10%"}]
[null,"Skattesats",{"v":0.3,"d":"30%"}]
[]
["Angiv oplysninger i tabellen Initialinvestering, der begynder i cellen til højre. Den næste vejledning er i celle A16.","Initialinvesteringen i websted","ÅR","1","2","3"]
[null,"Hardware (f.eks. servere)",{"v":25000,"d":"kr. 25,000.00"}]
[null,"Software (f.eks. software til e-handelskatalog)",{"v":15000,"d":"kr. 15,000.00"}]
[null,"Udvikling (f.eks. design og udvikling af tredjepartswebsted)",{"v":150000,"d":"kr. 150,000.00"}]
[null,"Samlede initialinvesteringer",{"$f":"SUBTOTAL(109,Initialinvestering[ÅR])","v":{"v":190000,"d":"kr. 190,000.00"}}]
[]
["Angiv oplysninger i tabellen Fortjeneste, der begynder i cellen til højre. Den næste vejledning er i celle A24.","Fortjeneste fra webstedet","ÅR","1","2","3"]
[null,"Direkte salg",null,{"v":15000,"d":"kr. 15,000.00"},{"v":50000,"d":"kr. 50,000.00"},{"v":75000,"d":"kr. 75,000.00"}]
[null,"Trinvise salg som følge af forbedret effektivitet for kampagner/sælger",null,{"v":25000,"d":"kr. 25,000.00"},{"v":25000,"d":"kr. 25,000.00"},{"v":25000,"d":"kr. 25,000.00"}]
[null,"Trinvise salg som følge af øget partnerdeltagelse",null,{"v":25000,"d":"kr. 25,000.00"},{"v":25000,"d":"kr. 25,000.00"},{"v":25000,"d":"kr. 25,000.00"}]
[null,"Reducerede rejseomkostninger",null,{"v":25000,"d":"kr. 25,000.00"},{"v":25000,"d":"kr. 25,000.00"},{"v":25000,"d":"kr. 25,000.00"}]
[null,"Reducerede omkostninger i forbindelse med kundeservice",null,{"v":50000,"d":"kr. 50,000.00"},{"v":50000,"d":"kr. 50,000.00"},{"v":50000,"d":"kr. 50,000.00"}]
[null,"Samlet fortjeneste",null,{"$f":"SUBTOTAL(109,Fortjeneste[1])","v":{"v":140000,"d":"kr. 140,000.00"}},{"$f":"SUBTOTAL(109,Fortjeneste[2])","v":{"v":175000,"d":"kr. 175,000.00"}},{"$f":"SUBTOTAL(109,Fortjeneste[3])","v":{"v":200000,"d":"kr. 200,000.00"}}]
[]
["Angiv oplysninger i tabellen Omkostninger, der begynder i cellen til højre. Værdier beregnes automatisk i celler med formler. Den næste vejledning er i celle A32.","Omkostninger (ekskl. initialkapitalinvesteringer)","ÅR","1","2","3"]
[null,"Salgsomkostninger",null,{"v":7500,"d":"kr. 7,500.00"},{"v":25000,"d":"kr. 25,000.00"},{"v":37500,"d":"kr. 37,500.00"}]
[null,"Vedligeholdelse",null,{"v":15000,"d":"kr. 15,000.00"},{"v":15000,"d":"kr. 15,000.00"},{"v":15000,"d":"kr. 15,000.00"}]
[null,"Projektstyring, kundesupport",null,{"v":35000,"d":"kr. 35,000.00"},{"v":35000,"d":"kr. 35,000.00"},{"v":35000,"d":"kr. 35,000.00"}]
[null,"Onlinereklamer, søgemaskineregistrering",null,{"v":10000,"d":"kr. 10,000.00"},{"v":10000,"d":"kr. 10,000.00"},{"v":10000,"d":"kr. 10,000.00"}]
[null,"Afskrivning på kapitaludgifter (beregning anvender tre årig periode)",null,{"$f":"Initialinvestering[[#Totals],[ÅR]]/3","v":{"v":63333.333333333336,"d":"kr. 63,333.33"}},{"$f":"Initialinvestering[[#Totals],[ÅR]]/3","v":{"v":63333.333333333336,"d":"kr. 63,333.33"}},{"$f":"Initialinvestering[[#Totals],[ÅR]]/3","v":{"v":63333.333333333336,"d":"kr. 63,333.33"}}]
[null,"Samlede omkostninger",null,{"$f":"SUBTOTAL(109,Omkostninger[1])","v":{"v":130833.33333333334,"d":"kr. 130,833.33"}},{"$f":"SUBTOTAL(109,Omkostninger[2])","v":{"v":148333.33333333334,"d":"kr. 148,333.33"}},{"$f":"SUBTOTAL(109,Omkostninger[3])","v":{"v":160833.33333333334,"d":"kr. 160,833.33"}}]
[]
["Værdier beregnes automatisk i tabellen Totaler, der begynder i cellen til højre. Den næste vejledning er i celle A40.","Totaler","ÅR","1","2","3"]
[null,"Nettofortjeneste (omkostninger)",null,{"$f":"Fortjeneste[[#Totals],[1]]-Omkostninger[[#Totals],[1]]","v":{"v":9166.666666666657,"d":"kr. 9,166.67"}},{"$f":"Fortjeneste[[#Totals],[2]]-Omkostninger[[#Totals],[2]]","v":{"v":26666.666666666657,"d":"kr. 26,666.67"}},{"$f":"Fortjeneste[[#Totals],[3]]-Omkostninger[[#Totals],[3]]","v":{"v":39166.66666666666,"d":"kr. 39,166.67"}}]
[null,"Skat",null,{"$f":"D33*Skattesats","v":{"v":2749.999999999997,"d":"kr. 2,750.00"}},{"$f":"E33*Skattesats","v":{"v":7999.999999999996,"d":"kr. 8,000.00"}},{"$f":"F33*Skattesats","v":{"v":11749.999999999996,"d":"kr. 11,750.00"}}]
[null,"Værdi efter skat",null,{"$f":"D33-D34","v":{"v":6416.666666666661,"d":"kr. 6,416.67"}},{"v":18666.66666666666,"d":"kr. 18,666.67"},{"v":27416.66666666666,"d":"kr. 27,416.67"}]
[null,"Afskrivning tilføjet",null,{"$f":"D29","v":{"v":63333.333333333336,"d":"kr. 63,333.33"}},{"$f":"E29","v":{"v":63333.333333333336,"d":"kr. 63,333.33"}},{"$f":"F29","v":{"v":63333.333333333336,"d":"kr. 63,333.33"}}]
[null,"Pengestrømme",{"$f":"-Initialinvestering[[#Totals],[ÅR]]","v":{"v":-190000,"d":"kr. -190,000.00"}},{"$f":"D35+D36","v":{"v":69750,"d":"kr. 69,750.00"}},{"v":82000,"d":"kr. 82,000.00"},{"v":90750,"d":"kr. 90,750.00"}]
[null,"Samlet pengestrøm",{"$f":"C37","v":{"v":-190000,"d":"kr. -190,000.00"}},{"$f":"C38+D37","v":{"v":-120250,"d":"kr. -120,250.00"}},{"v":-38250,"d":"kr. -38,250.00"},{"v":52500,"d":"kr. 52,500.00"}]
[]
["Evalueringsmålepunkter beregnes automatisk i tabellen Målepunkter, der begynder i cellen til højre.","Evalueringsmålepunkter","Værdier"]
[null,"Nettonutidsværdi",{"$f":"C37+(NPV(ROR,D37:F37))","v":{"v":9359.504132231377,"d":"kr. 9,359.50"}}]
[null,"Intern afkastningsgrad",{"$f":"IRR(C37:F37)","v":{"v":0.12655165144706393,"d":"12.66%"}}]
[null,"Tilbagebetalingsperiode (i år)",{"$f":"IF(F38<=0,\"Overstiger tre år\",IF(E38<=0,(F37-F38)/F37+2,IF(D38<=0,(E37-E38)/E37+1,IF(C38<=0,(D37-D38)/D37,\"I/T\"))))","v":{"v":2.4214876033057853,"d":"2.42"}}]